lending/lending_fUSD_20251018
["ID","MTS","AMOUNT","RATE_DAILY","PERIOD"]
[391793473,1760829032432,-151.0,0.00024985,2]
[391793474,1760829032442,-151.0,0.00024985,2]
[391793475,1760829032452,-151.0,0.00024985,2]
[391793476,1760829032461,-151.0,0.00024985,2]
[391793477,1760829032471,-151.0,0.00024985,2]
[391793478,1760829032481,-191.51505329,0.00024985,2]
[391793479,1760829032490,-11025.88831159,0.00025,2]
[391793480,1760829032500,-66.7945285,0.00026676,2]
[391793481,1760829032511,-228.5954715,0.00026676,2]
[391793482,1760829032520,-312.93284984,0.000268,2]
[391793483,1760829032530,-312.93284984,0.000271,2]
[391793484,1760829032539,-312.93284984,0.000274,2]
[391793485,1760829032549,-312.93284984,0.000277,2]
[391793486,1760829032558,-312.93284984,0.000279,2]
[391793487,1760829032568,-1500.0,0.000288,2]
[391793488,1760829032577,-158.0,0.00029945,2]
[391793489,1760829032587,-1000.0,0.00030001,2]
[391793490,1760829032596,-529.01,0.00030239,2]
[391793491,1760829032606,-250.0,0.00030257,7]
[391793492,1760829032617,-500.0,0.00030479,2]
[391793493,1760829032627,-265.5967012,0.00030479,2]
[391793494,1760829032636,-500.0,0.00030479,2]
[391793495,1760829032646,-500.0,0.00030479,2]
[391793496,1760829032655,-500.0,0.00030479,2]
[391793497,1760829032665,-500.0,0.00030479,2]
[391793498,1760829032676,-500.0,0.00030479,2]
[391793499,1760829032685,-250.0,0.0003048,2]
[391793500,1760829032696,-250.0,0.0003048,2]
[391793501,1760829032705,-250.0,0.0003048,2]
[391793502,1760829032715,-250.0,0.0003048,2]
[391793504,1760829032724,-250.0,0.0003048,2]
[391793505,1760829032733,-250.0,0.0003048,2]
[391793506,1760829032742,-250.0,0.0003048,2]
[391793507,1760829032751,-250.0,0.0003048,2]
[391793508,1760829032760,-250.0,0.0003048,2]
[391793510,1760829032769,-1000.0,0.0003048,2]
[391793511,1760829032778,-1000.0,0.0003048,2]
[391793512,1760829032787,-1000.0,0.0003048,2]
[391793513,1760829032797,-1000.0,0.0003048,2]
[391793514,1760829032807,-277.35679052,0.0003048,2]
[391793515,1760829032817,-3000.0,0.0003048,2]
[391793516,1760829032826,-3000.0,0.0003048,2]
[391793517,1760829032835,-1000.0,0.0003048,2]
[391793518,1760829032845,-3000.0,0.0003048,2]
[391793519,1760829032855,-1000.0,0.0003048,2]
[391793520,1760829032864,-3000.0,0.0003048,2]
[391793521,1760829032874,-1000.0,0.0003048,2]
[391793522,1760829032893,-322.6107,0.0003048,2]
[391793523,1760829032903,-250.0,0.0003048,2]
[391793524,1760829032913,-250.0,0.0003048,2]
[391793525,1760829032923,-250.0,0.0003048,2]
[391793526,1760829032933,-250.0,0.0003048,2]
[391793527,1760829032943,-165.57852915,0.0003048,2]
[391793528,1760829032952,-150.0,0.00030494,2]
[391793529,1760829032961,-418.37,0.00031263,2]
[391793530,1760829032971,-300.0,0.00031292,2]
[391793531,1760829032981,-1422.98,0.00031398,2]
[391793532,1760829032990,-1466.96,0.00031403,2]
[391793533,1760829033000,-1061.418,0.00031426,29]
[391793534,1760829033010,-474.4,0.00031589,2]
[391793535,1760829033019,-217.23513374,0.00031849,2]
[391793536,1760829033029,-175.39,0.00031949,2]
[391793537,1760829033039,-412.81,0.00031949,2]
[391793538,1760829033049,-150.0,0.00032142,2]
[391793539,1760829033059,-2590.0,0.00032161,2]
[391793540,1760829033070,-150.0,0.00032197,2]
[391793541,1760829033079,-5553.12,0.00032232,2]
[391793542,1760829033089,-3682.93,0.00032232,10]
[391793543,1760829033099,-150.99,0.00032232,2]
[391793544,1760829033109,-1428.0,0.00032235,2]
[391793545,1760829033119,-200.48277132,0.00032252,2]
[391793546,1760829033129,-1011.24498581,0.00032286,2]
[391793547,1760829033139,-917.42836959,0.0003229,2]
[391793548,1760829033149,-411.77409173,0.0003229,2]
[391793549,1760829033159,-5000.0,0.0003229,2]
[391793550,1760829033168,-552.703691,0.000323,2]
[391793551,1760829033178,-171.62723967,0.000323,2]
[391793552,1760829033187,-1011.24498579,0.00032306,2]
[391793553,1760829033196,-917.42836955,0.00032309,2]
[391793554,1760829033206,-411.77409167,0.00032315,2]
[391793555,1760829033215,-1011.24498579,0.00032326,2]
[391793556,1760829033225,-917.42836955,0.00032329,2]
[391793557,1760829033239,-411.77409167,0.0003234,2]
[391793558,1760829033249,-1011.24498579,0.00032346,2]
[391793559,1760829033260,-917.42836955,0.00032348,2]
[391793560,1760829033269,-1011.24498579,0.00032366,2]
[391793561,1760829033279,-917.42836955,0.00032368,2]
[391793562,1760829033289,-1225.71574762,0.0003238,3]
[391793563,1760829033299,-7354.29448572,0.0003238,3]
[391793564,1760829033309,-30814.79677995,0.0003238,3]
[391793565,1760829033323,-281.2354999,0.0003238,3]
[391793566,1760829033334,-487.24168,0.0003238,3]
[391793567,1760829033345,-2220.0,0.0003238,3]
[391793568,1760829033357,-433.06456324,0.0003238,3]
[391793589,1760829040490,-411.77409167,0.00032365,2]
[391793590,1760829040502,-3045.45037699,0.0003238,3]
[391793591,1760829040514,-5156.76398532,0.0003238,3]
[391793592,1760829040524,-552.70369098,0.00032383,2]
[391793593,1760829040533,-171.62723967,0.00032383,2]
[391793594,1760829040543,-1792.34,0.00032385,2]
[391793595,1760829040552,-500.0,0.00032385,2]
[391793596,1760829040562,-500.0,0.00032385,2]
[391793597,1760829040572,-637.21403337,0.00032385,2]
[391793598,1760829040581,-1011.24498579,0.00032385,2]
[391793599,1760829040591,-27715.774349,0.00032386,2]
[391793600,1760829040600,-1650.9047902,0.00032386,2]
[391793601,1760829040609,-52563.6721406,0.00032386,2]
[391793602,1760829040618,-917.42836955,0.00032387,2]
[391793603,1760829040627,-207.91806194,0.00032389,2]
[391793604,1760829040637,-157.6946447,0.00032389,2]
[391793605,1760829040646,-500.0,0.00032389,2]
[391793606,1760829040655,-338.92547811,0.00032389,2]
[391793607,1760829040664,-500.0,0.00032389,2]
[391793608,1760829040674,-500.0,0.00032389,2]
[391793609,1760829040683,-769.99,0.00032389,2]
[391793610,1760829040873,-500.0,0.00032389,2]
[391793611,1760829040887,-500.0,0.00032389,2]
[391793612,1760829040897,-973.98,0.00032389,2]
[391793613,1760829040908,-500.0,0.00032389,2]
[391793614,1760829040918,-500.0,0.00032389,2]
[391793615,1760829040927,-363.07,0.00032389,2]
[391793616,1760829040936,-500.0,0.00032389,2]
[391793617,1760829040945,-300.0,0.00032389,2]
[391793618,1760829040954,-500.0,0.00032389,2]
[391793619,1760829040963,-426.76,0.00032389,2]
[391793620,1760829040972,-505.41,0.00032389,2]
[391793621,1760829040981,-2249.84628,0.00032389,2]
[391793622,1760829040990,-500.0,0.00032389,2]
[391793623,1760829041000,-500.0,0.00032389,2]
[391793624,1760829041009,-500.0,0.00032389,2]
[391793625,1760829041018,-500.0,0.00032389,2]
[391793626,1760829041027,-500.0,0.00032389,2]
[391793627,1760829041036,-1673.22,0.00032389,2]
[391793628,1760829041046,-500.0,0.00032389,2]
[391793629,1760829041055,-500.0,0.00032389,2]
[391793630,1760829041064,-500.0,0.00032389,2]
[391793631,1760829041073,-536.33296697,0.00032389,2]
[391793632,1760829041083,-500.0,0.00032389,2]
[391793633,1760829041092,-533.93,0.00032389,2]
[391793634,1760829041101,-559.27159471,0.00032389,2]
[391793635,1760829041110,-359.94593799,0.00032389,2]
[391793636,1760829041120,-500.0,0.00032389,2]
[391793637,1760829041129,-5304.81911068,0.0003239,3]
[391793638,1760829041138,-4262.41620211,0.0003239,18]
[391793646,1760829043475,-468.8807574,0.0003239,18]
[391793647,1760829043495,-789.44390463,0.0003239,18]
[391793660,1760829466663,2119.19,0.00016,2]
[391793664,1760829544429,4704.69363488,0.00014,10]
[391793665,1760829544454,4704.69363488,0.00014,10]
[391793666,1760829544477,590.61273024,0.00014,10]
[391793668,1760829700491,10000.0,0.00016,60]
[391793669,1760829908550,4114.08090464,0.00015,2]
[391793670,1760829908576,4704.69363488,0.00015,2]
[391793671,1760829908601,4704.69363488,0.00015,2]
[391793672,1760829908627,4704.69363488,0.00015,2]
[391793673,1760829908651,4704.69363488,0.00015,2]
[391793674,1760829908676,4704.69363488,0.00015,2]
[391793675,1760829908701,4704.69363488,0.00015,2]
[391793676,1760829908727,4704.69363488,0.00015,2]
[391793677,1760829925577,365.88820122,0.000108,2]
[391793678,1760829936502,1098.85001053,9e-05,2]
[391793683,1760829962252,1337.63178825,8e-05,2]
[391793949,1760830200893,5000.0,0.00032815,30]
[391793959,1760830231559,-151.05177922,0.0001439,2]
[391793960,1760830231570,-173.37071268,0.00014973,2]
[391793961,1760830231730,-279.57607143,0.00014973,2]
[391793962,1760830231738,-215.42392857,0.00014973,2]
[391794018,1760830237713,-284.57607143,0.00014973,2]
[391794019,1760830237722,-500.0,0.00014973,2]
[391794020,1760830237732,-500.0,0.00014973,2]
[391794021,1760830237742,-300.0,0.00014998,2]
[391794022,1760830237752,-1200.0,0.00014998,2]
[391794023,1760830237761,-150.0,0.00014998,2]
[391794024,1760830237770,-587.24783468,0.00014999,2]
[391794025,1760830237779,-500.0,0.00014999,2]
[391794026,1760830237789,-69621.08765821,0.00015,2]
[391794027,1760830237799,-2560.49264052,0.00015,2]
[391794029,1760830237810,-22499.99994348,0.00015,2]
[391794031,1760830237820,-350.12382646,0.00015,2]
[391794120,1760830242629,-500.0,0.00014999,2]
[391794121,1760830242640,-500.0,0.00014999,2]
[391794122,1760830242650,-500.0,0.00014999,2]
[391794123,1760830242661,-500.0,0.00014999,2]
[391794124,1760830242671,-500.0,0.00014999,2]
[391794125,1760830242681,-500.0,0.00014999,2]
[391794126,1760830242691,-500.0,0.00014999,2]
[391794127,1760830242702,-500.0,0.00014999,2]
[391794128,1760830242713,-500.0,0.00014999,2]
[391794129,1760830242723,-500.0,0.00014999,2]
[391794130,1760830242733,-500.0,0.00014999,2]
[391794131,1760830242744,-500.0,0.00014999,2]
[391794132,1760830242756,-500.0,0.00014999,2]
[391794133,1760830242766,-500.0,0.00014999,2]
[391794134,1760830242776,-500.0,0.00014999,2]
[391794136,1760830242786,-500.0,0.00014999,2]
[391794137,1760830242795,-500.0,0.00014999,2]
[391794138,1760830242805,-500.0,0.00014999,2]
[391794139,1760830242815,-355.2110103,0.00014999,2]
[391794140,1760830242824,-1516.0287243,0.00015,2]
[391794141,1760830245862,-500.0,0.00014999,2]
[391794142,1760830245875,-3542.83941797,0.00015,2]
[391794153,1760830984774,5529.84615628,0.000139,2]
[391794154,1760831000384,-254.29827041,0.000139,2]
[391794155,1760831004142,-165.77664263,0.000139,2]
[391794156,1760831005742,-211.23171946,0.000139,2]
[391794157,1760831011931,-224.44009699,0.000139,2]
[391794158,1760831015137,-265.68752685,0.000139,2]
[391794159,1760831017340,-219.30693218,0.000139,2]
[391794160,1760831020433,-222.65064152,0.000139,2]
[391794161,1760831022673,-442.06633041,0.000139,2]
[391794162,1760831024707,-288.79120476,0.000139,2]
[391794163,1760831028194,-434.50605857,0.000139,2]
[391794164,1760831029663,-482.86536425,0.000139,2]
[391794165,1760831046545,-257.52502837,0.000139,2]
[391794166,1760831048143,-300.0,0.00013699,2]
[391794169,1760831052565,-5.0,0.00013699,2]
[391794170,1760831052587,-202.93674772,0.00013799,2]
[391794171,1760831052611,-48.01629969,0.000139,2]
[391794172,1760831054787,-265.50166498,0.000139,2]
[391794173,1760831056690,-195.0,0.000139,2]
[391794174,1760831060532,-162.20630905,0.000139,2]
[391794175,1760831061980,-180.92839003,0.000139,2]
[391794176,1760831064130,-318.89598305,0.000139,2]
[391794177,1760831065776,-173.87075851,0.000139,2]
[391794178,1760831068338,-308.84395509,0.000139,2]
[391794179,1760831070479,-218.51371194,0.000139,2]
[391794180,1760831073182,-200.01629112,0.000139,2]
[391794181,1760831075216,-206.12852006,0.000139,2]
[391794182,1760831076810,-410.40677693,0.000139,2]
[391794183,1760831078951,-500.0,0.000139,2]
[391794184,1760831080232,-466.71225762,0.000139,2]
[391794185,1760831083975,-197.85124363,0.000139,2]
[391794186,1760831086010,-239.96733956,0.000139,2]
[391794187,1760831088590,-233.00344987,0.000139,2]
[391794188,1760831105314,-296.5598521,0.00013899,2]
[391794189,1760831108485,-549.45890449,0.00013899,2]
[391794190,1760831110559,-199.83052958,0.00013899,2]
[391794191,1760831112051,-154.15071383,0.00013899,2]
[391794192,1760831112075,-222.22641899,0.00013899,2]
[391794193,1760831114369,-17.77358101,0.00013899,2]
[391794194,1760831114394,-250.0,0.000139,2]
[391794195,1760831114419,-145.1272957,0.000139,2]
[391794196,1760831117303,-154.8727043,0.000139,2]
[391794197,1760831117325,-72.0718076,0.000139,2]
[391794198,1760831119378,-258.24329628,0.000139,2]
[391794199,1760831135313,-301.67714213,0.000139,2]
[391794200,1760831139112,-280.51535638,0.000139,2]
[391794201,1760831141582,-432.18480056,0.000139,2]
[391794202,1760831143329,-442.58636448,0.000139,2]
[391794203,1760831145318,-187.83020545,0.000139,2]
[391794204,1760831147986,-152.75,0.000139,2]
[391794242,1760831149979,-319.90661146,0.000139,2]
[391794252,1760831152751,-197.12372833,0.000139,2]
[391794253,1760831156717,-172.45,0.000139,2]
[391794254,1760831158756,-357.83888165,0.000139,2]
[391794255,1760831160897,-373.32591773,0.000139,2]
[391794256,1760831165218,-320.77865192,0.000139,2]
[391794257,1760831167672,-225.62852009,0.000139,2]
[391794258,1760831172601,-168.58978569,0.000139,2]
[391794259,1760831174194,-272.55,0.000139,2]
[391794260,1760831177235,-281.8224263,0.000139,2]
[391794261,1760831179339,-161.20902467,0.000139,2]
[391794262,1760831195871,-320.25059967,0.000139,2]
[391794263,1760831197826,-242.21084912,0.000139,2]
[391794264,1760831201132,-234.99142358,0.000139,2]
[391794265,1760831204432,-250.0,0.000139,2]
[391794266,1760831206775,-182.35446581,0.000139,2]
[391794267,1760831208191,-228.36034156,0.000139,2]
[391794268,1760831212514,-357.41725042,0.000139,2]
[391794269,1760831215588,-250.0,0.000139,2]
[391794270,1760831218476,-414.2885262,0.000139,2]
[391794271,1760831220513,-190.21738323,0.000139,2]
[391794272,1760831222577,-229.7628931,0.000139,2]
[391794278,1760831240281,-304.43393434,0.000139,2]
[391794279,1760831241814,-270.82392731,0.000139,2]
[391794280,1760831245001,-466.89912202,0.000139,2]
[391794281,1760831246586,-289.73762311,0.000139,2]
[391794282,1760831248160,-1134.28260132,0.000139,2]
[391794283,1760831252339,-220.15177752,0.000139,2]
[391794284,1760831270851,-162.91502464,0.000139,2]
[391794285,1760831277945,-268.35715914,0.000139,2]
[391794286,1760831280006,-608.14338052,0.000139,2]
[391794287,1760831284386,-218.61143519,0.000139,2]
[391794288,1760831299898,-576.19118443,0.000139,2]
[391794289,1760831299918,-215.99731066,0.000139,2]
[391794290,1760831299939,-300.0,0.00014402,2]
[391794291,1760831299958,-215.99731066,0.00014402,2]
[391794292,1760831299980,-2500.0,0.00014403,2]
[391794293,1760831300003,-191.81419425,0.00014403,2]
[391794294,1760831300929,-3.18580575,0.00014403,2]
[391794295,1760831300955,-212.20391149,0.00014403,2]
[391794296,1760831301076,-287.79608851,0.00014403,2]
[391794297,1760831301280,-2538.03111803,0.00014739,2]
[391794298,1760831301306,-195.0,0.00014739,2]
[391794299,1760831301330,-584.58579112,0.00014739,2]
[391794300,1760831301353,-394.58700234,0.000149,2]
[391794301,1760831301619,-343.73652625,0.000149,2]
[391794302,1760831301646,-821.11,0.0001492,2]
[391794303,1760831301667,-500.43791063,0.00014973,2]
[391794304,1760831301691,-170.91556984,0.00014973,2]
[391794305,1760831301712,-635.86311755,0.00014973,2]
[391794306,1760831301731,-500.0,0.00014973,2]
[391794307,1760831301757,-500.0,0.00014973,2]
[391794308,1760831301779,-500.0,0.00014973,2]
[391794309,1760831301799,-27.93687573,0.00014973,2]
[391794310,1760831302269,-472.06312427,0.00014973,2]
[391794311,1760831302290,-500.0,0.00014973,2]
[391794312,1760831302311,-500.0,0.00014973,2]
[391794313,1760831302333,-500.2772235,0.00014973,2]
[391794314,1760831302355,-500.43440996,0.00014973,2]
[391794315,1760831302376,-500.0,0.00014973,2]
[391794316,1760831302397,-504.40191595,0.00014973,2]
[391794317,1760831302421,-500.0,0.00014973,2]
[391794318,1760831302445,-22.82332632,0.00014973,2]
[391794319,1760831302473,-192.79377433,0.00014973,2]
[391794320,1760831302900,-194.32000351,0.00014973,2]
[391794321,1760831302923,-500.0,0.00014973,2]
[391794322,1760831302946,-500.0,0.00014973,2]
[391794323,1760831302968,-151.0,0.00014991,2]
[391794324,1760831302990,-151.0,0.00014991,2]
[391794325,1760831303013,-151.0,0.00014991,2]
[391794326,1760831303039,-151.0,0.00014991,2]
[391794327,1760831303061,-151.0,0.00014991,2]
[391794328,1760831303082,-500.0,0.00014999,2]
[391794329,1760831303103,-220.98412807,0.00014999,2]
[391794330,1760831303127,-500.0,0.00014999,2]
[391794331,1760831303149,-508.7729226,0.00014999,2]
[391794332,1760831303172,-320.92294582,0.00014999,2]
[391794333,1760831320456,-179.07705418,0.00014999,2]
[391794334,1760831320482,-500.0,0.00014999,2]
[391794335,1760831320504,-320.92294582,0.00014999,2]
[391794336,1760831321646,-179.07705418,0.00014999,2]
[391794337,1760831321670,-500.0,0.00014999,2]
[391794338,1760831321693,-320.92294582,0.00014999,2]
[391794339,1760831323093,-13.3368905,0.00014999,2]
[391794340,1760831323121,-500.0,0.00014999,2]
[391794341,1760831323148,-486.6631095,0.00014999,2]
[391794342,1760831340546,-13.3368905,0.00014999,2]
[391794343,1760831340572,-386.6631095,0.00014999,2]
[391794346,1760831431831,-189.0,0.00014998,2]
[391794347,1760831431841,-480.0,0.00014998,2]
[391794348,1760831431851,-113.3368905,0.00014999,2]
[391794349,1760831431861,-500.0,0.00014999,2]
[391794350,1760831431871,-500.0,0.00014999,2]
[391794351,1760831431881,-500.0,0.00014999,2]
[391794352,1760831431891,-500.0,0.00014999,2]
[391794353,1760831431902,-500.0,0.00014999,2]
[391794354,1760831431912,-500.0,0.00014999,2]
[391794355,1760831431922,-500.0,0.00014999,2]
[391794356,1760831431932,-500.0,0.00014999,2]
[391794357,1760831431941,-500.0,0.00014999,2]
[391794358,1760831431951,-500.0,0.00014999,2]
[391794359,1760831431960,-500.0,0.00014999,2]
[391794360,1760831431970,-500.0,0.00014999,2]
[391794361,1760831431979,-93129.31075016,0.00015,2]
[391794362,1760831431994,-436.60011272,0.00015,2]
[391794363,1760831432006,-339.66691684,0.00015,2]
[391794364,1760831432017,-1807.01762166,0.00015,2]
[391794365,1760831432028,-357.30360357,0.00015,2]
[391794366,1760831432039,-450.0,0.00015,2]
[391794367,1760831432056,-1028.92855401,0.00015,2]
[391794379,1760831437574,-761.36053784,0.00015,2]
[391794380,1760831437619,-805.0,0.00015,2]
[391794381,1760831437632,-4459.38263858,0.00015,2]
[391794382,1760831437660,-749.74194093,0.00015,2]
[391794385,1760831439682,-2340.00000005,0.00015,2]
[391794389,1760831439750,-43207.64810426,0.00015,2]
[391794390,1760831439761,-160.0,0.00015,2]
[391794391,1760831439771,-151.0,0.00015275,2]
[391794392,1760831439781,-151.0,0.00015275,2]
[391794393,1760831439792,-250.0,0.00015289,2]
[391794394,1760831439802,-300.0,0.00015289,2]
[391794395,1760831439813,-2304.79962,0.0001535,2]
[391794396,1760831439823,-151.0,0.00015364,2]
[391794397,1760831439832,-797.81637227,0.00015521,2]
[391794398,1760831439842,-821.11,0.00015706,2]
[391794399,1760831439852,-9298.47702304,0.00015906,2]
[391794400,1760831439861,-7880.81,0.00016,2]
[391794401,1760831439871,-2304.79962,0.0001635,2]
[391794402,1760831439881,-821.11,0.00016491,2]
[391794403,1760831439891,-9644.54198441,0.00016987,2]
[391794404,1760831439903,-1625.26519539,0.00016987,2]
[391794405,1760831439913,-1164.2279505,0.00016987,2]
[391794406,1760831439923,-821.11,0.00017276,2]
[391794407,1760831439933,-2304.79962,0.0001735,2]
[391794408,1760831439943,-821.11,0.00018062,2]
[391794409,1760831439953,-2304.79962,0.0001835,2]
[391794410,1760831439963,-738.32352859,0.00018803,2]
[391794411,1760831439972,-821.11,0.00018847,2]
[391794412,1760831439982,-1236.47939831,0.0001935,2]
[391794413,1760831439994,-1068.32023169,0.0001935,2]
[391794414,1760831440003,-821.11,0.00019632,2]
[391794415,1760831440013,-848.25467541,0.00019701,2]
[391794416,1760831440024,-1666.37920539,0.00019701,2]
[391794417,1760831440034,-206.29028846,0.00019853,2]
[391794418,1760831440044,-305.0,0.00020187,2]
[391794419,1760831440053,-561.0906605,0.00020307,2]
[391794420,1760831440063,-500.0,0.00020349,2]
[391794421,1760831440072,-2304.79962,0.0002035,2]
[391794422,1760831440082,-821.11,0.00020417,2]
[391794423,1760831440092,-738.32352859,0.00020755,2]
[391794424,1760831440102,-821.11,0.00021203,2]
[391794425,1760831440111,-821.11,0.00021988,2]
[391794426,1760831440120,-202.35,0.00022,2]
[391794427,1760831440132,-738.32352859,0.00022707,2]
[391794428,1760831440142,-821.11,0.00022773,2]
[391794429,1760831440151,-821.11,0.00023559,2]
[391794430,1760831440161,-202.35,0.00023933,2]
[391794432,1760831440171,-189.29,0.00024333,2]
[391794433,1760831440180,-821.11,0.00024344,2]
[391794434,1760831440190,-738.32352859,0.00024658,2]
[391794435,1760831440199,-500.0,0.00024932,2]
[391794436,1760831440208,-500.0,0.00024999,2]
[391794437,1760831440219,-17181.32347346,0.00025,7]
[391794438,1760831440228,-151.0,0.00025,7]
[391794439,1760831440238,-821.11,0.00025129,2]
[391794440,1760831440248,-201.05,0.00025791,2]
[391794441,1760831440258,-150.62,0.00025834,2]
[391794442,1760831440268,-202.35,0.00025866,7]
[391794443,1760831440279,-821.11,0.00025914,2]
[391794444,1760831440289,-738.32352859,0.0002661,2]
[391794445,1760831440299,-305.0,0.00026676,2]
[391794446,1760831440309,-821.11,0.000267,2]
[391794447,1760831440321,-195.58303114,0.000268,2]
[391794448,1760831440331,-165.53,0.00026813,2]
[391794449,1760831440341,-1564.081,0.00026927,15]
[391794450,1760831440351,-1000.0,0.00027099,2]
[391794451,1760831440362,-195.58303114,0.000271,2]
[391794452,1760831440374,-150.62,0.00027204,2]
[391794453,1760831440384,-821.11,0.00027485,2]
[391794454,1760831440394,-202.35,0.00027799,7]
[391794455,1760831440404,-2751.0,0.00027981,2]
[391794456,1760831440414,-541.38,0.00028041,2]
[391794457,1760831440424,-166.66,0.00028043,30]
[391794458,1760831440434,-666.0,0.00028178,3]
[391794459,1760831440443,-184.56866012,0.00028253,4]
[391794460,1760831440454,-821.11,0.0002827,2]
[391794461,1760831440463,-738.32352859,0.00028562,2]
[391794462,1760831440473,-194.04739368,0.00028625,2]
[391794463,1760831440482,-500.0,0.00028625,2]
[391794464,1760831440491,-258.74916309,0.00028625,2]
[391794465,1760831440500,-209.84105153,0.00028625,2]
[391794466,1760831440509,-474.95222832,0.00028625,2]
[391794467,1760831440519,-17372.0,0.00028626,2]
[391794468,1760831440529,-166.66,0.00028633,30]
[391794469,1760831440539,-150.0,0.00028741,2]
[391794470,1760831440548,-153.0,0.00028846,2]
[391794471,1760831440558,-821.11,0.00029056,2]
[391794472,1760831440568,-150.0,0.00029145,7]
[391794473,1760831440578,-166.66,0.00029224,30]
[391794474,1760831440588,-202.35,0.00029733,30]
[391794475,1760831440597,-166.66,0.00029814,30]
[391794476,1760831440608,-821.11,0.00029841,2]
[391794477,1760831440619,-259.378381,0.00029928,30]
[391794478,1760831440629,-500.0,0.00029947,5]
[391794479,1760831440639,-373.37772484,0.00029947,5]
[391794480,1760831440649,-4000.0,0.0003,10]
[391794481,1760831440660,-225.63180199,0.00030036,2]
[391794482,1760831440670,-5791.39821491,0.00030126,3]
[391794483,1760831440683,-500.0,0.00030136,2]
[391794484,1760831440692,-500.0,0.00030136,2]
[391794485,1760831440701,-737.91,0.00030136,2]
[391794486,1760831440711,-500.0,0.00030136,2]
[391794487,1760831440721,-933.4,0.00030136,2]
[391794488,1760831440732,-500.0,0.00030136,2]
[391794489,1760831440742,-300.0,0.00030136,2]
[391794490,1760831440752,-548.79,0.00030136,2]
[391794491,1760831440762,-500.0,0.00030136,2]
[391794492,1760831440771,-500.0,0.00030136,2]
[391794493,1760831440780,-1717.66,0.00030136,2]
[391794494,1760831440790,-498.96200002,0.00030136,2]
[391794495,1760831440799,-1603.5,0.00030136,2]
[391794496,1760831440809,-500.0,0.00030136,2]
[391794497,1760831440818,-500.0,0.00030136,2]
[391794498,1760831440827,-500.0,0.00030136,2]
[391794499,1760831440836,-287.12662245,0.00030136,2]
[391794500,1760831440845,-514.0003572,0.00030136,2]
[391794501,1760831440855,-300.0,0.00030137,30]
[391794502,1760831440863,-300.0,0.00030137,30]
[391794503,1760831440873,-400.0,0.00030137,30]
[391794504,1760831440882,-1093.24,0.00030305,2]
[391794505,1760831440891,-336.17,0.00030308,2]
[391794506,1760831440900,-827.18,0.00030308,2]
[391794507,1760831440910,-289.2,0.00030308,2]
[391794508,1760831440919,-300.0,0.00030308,2]
[391794509,1760831440930,-150.0,0.00030308,2]
[391794510,1760831441109,-351.91,0.00030308,2]
[391794511,1760831441120,-176.09,0.00030308,2]
[391794512,1760831441130,-757.0,0.00030333,7]
[391794513,1760831441142,-225.63180193,0.00030383,2]
[391794514,1760831441153,-258.0,0.00030394,2]
[391794515,1760831441164,-2546.0,0.00030394,2]
[391794516,1760831441176,-5791.39821491,0.000304,3]
[391794517,1760831441185,-475.74147678,0.000304,3]
[391794518,1760831441194,-166.66,0.00030404,30]
[391794519,1760831441203,-737.91,0.0003041,2]
[391794520,1760831441212,-500.0,0.0003041,2]
[391794521,1760831441222,-933.4,0.0003041,2]
[391794522,1760831441232,-500.0,0.0003041,2]
[391794523,1760831441241,-300.0,0.0003041,2]